Cogmind - Beta 15 @@@ ROGUE MODE // 2025.10.07 @ 12:55:06 Player: microsand Result: Destroyed by S-10 Pest with Light Assault Rifle Performance ------------- Evolutions (0) 0 Regions Visited (1) 200 Robots Destroyed (17) 85 Value Destroyed (267) 267 Prototype IDs (0) 0 Alien Tech Used (0) 0 Bonus (0) 0 TOTAL SCORE: 552 Bonus ------- None Cogmind --------- Core Integrity 0/250 Matter 225/300 Energy 70/100 System Corruption 6% Temperature Cool (0) Movement Core (100) Ox1 Location -10/Materials Parts ------- > --- POWER (1) -------- (None) > --- PROPULSION (2) --- (None) > --- UTILITY (2) ------ Small Storage Unit > --- WEAPON (2) ------- (None) > --- INVENTORY (8) ---- Light Ion Engine Light Ion Engine Aluminum Leg Aluminum Leg Aluminum Leg Seismic Detector Light Armor Plating Peak State ------------ > --- POWER ------------ Light Nuclear Core > --- PROPULSION ------- Aluminum Leg Aluminum Leg > --- UTILITY ---------- Small Storage Unit Seismic Detector > --- WEAPON ----------- Medium Laser Assault Rifle > --- INVENTORY -------- Light Ion Engine Light Ion Engine Aluminum Leg Aluminum Leg Small Laser Mining Laser [Rating: 9] Favorites ----------- Power Light Ion Engine Engine Light Ion Engine Power Core Light Nuclear Core Propulsion Aluminum Leg Leg Aluminum Leg Utility Small Storage Unit Device Seismic Detector Storage Small Storage Unit Weapon Medium Laser Energy Gun Medium Laser Ballistic Gun Assault Rifle Special Weapon Mining Laser Build | -11 -10 ------- Run | Yrd Mat Slots Evolved . | . . Power . | . . Propulsion . | . . Utility . | . . Weapon . | . . Parts Attached 10 | 8 2 Power 2 | 1 1 Engine 1 | 1 . Core 1 | . 1 Reactor . | . . Propulsion 2 | 2 . Treads . | . . Leg 2 | 2 . Wheel . | . . Hover . | . . Flight . | . . Utility 2 | 2 . Device 1 | 1 . Storage 1 | 1 . Processor . | . . Hackware . | . . Protection . | . . Artifact . | . . Weapon 4 | 3 1 Energy Gun 2 | 2 . Energy Cannon . | . . Ballistic Gun 1 | 1 . Ballistic Cannon . | . . Launcher . | . . Special Weapon 1 | . 1 Impact Weapon . | . . Slashing Weapon . | . . Piercing Weapon . | . . Special Melee Weapon . | . . Unidentified Prototypes . | . . Parts Lost 7 | . 7 Power 1 | . 1 Propulsion 2 | . 2 Utility 1 | . 1 Weapon 3 | . 3 Highest Loss Streak 7 | . 7 To Critical Strikes . | . . Average Backups 4 | 1 6 Power 1 | . 1 Propulsion 1 | . 1 Utility . | . . Weapon 1 | 1 1 Tool/Special . | . . Unused Backups 6 | . 6 Power 1 | . 1 Propulsion 3 | . 3 Utility 2 | . 2 Weapon . | . . Tool/Special . | . . Average Slot Usage (%) 98 | . 98 Engine 5 | . 5 Core 8 | . 8 Leg 27 | . 27 Device 14 | . 14 Storage 14 | . 14 Energy Gun 16 | . 16 Ballistic Gun 10 | . 10 Peak Build Rating 9 | 7 9 Average Rating 7 | 5 8 On Entrance 3 | . 7 Naked Turns . | . . Heaviest Build 15 | 13 15 Greatest Support 20 | 20 20 Greatest Overweight (x) 4 | 2 4 Average Overweight (x) . | . . Largest Inventory Capacity 8 | 8 8 Average Capacity 7 | 7 8 Most Carried 8 | 3 8 Average Carried 4 | 1 6 Final Capacity 8 | 8 8 Final Carried 7 | 3 7 Class Distribution -------------------- 100% | Mutant Dominant Class ---------------- Mutant | -10/Materials Resources | -11 -10 ----------- Run | Yrd Mat Matter Collected 539 | 352 187 Remotely . | . . Salvage Created 466 | 203 263 Parts 30 | 12 18 Haulers Intercepted . | . . Recyclers Shooed . | . . Parts Field Recycled . | . . Retrieved Matter . | . . Parts Self-Destructed . | . . Prevented . | . . Kills | -11 -10 ------- Run | Yrd Mat Combat Hostiles Destroyed 7 | . 7 Guns 7 | . 7 Classes Destroyed 6 | 3 3 Worker 2 | 2 . Tunneler 5 | 5 . Recycler 1 | 1 . Watcher 2 | . 2 Swarmer 3 | . 3 Grunt 4 | . 4 Best Kill Streak 2 | 2 2 Combat Bots Only 2 | . 2 Max Kills in Single Turn 1 | 1 1 Gunslinging . | . . Exploded . | . . Melee . | . . Uniques/NPCs Destroyed . | . . Combat | -11 -10 -------- Run | Yrd Mat Hostile Shots Fired 71 | . 71 Missed 16 | . 16 Hits 55 | . 55 Projectile 55 | . 55 Critical Strikes 1 | . 1 Damage Taken 758 | . 758 Core 255 | . 255 Absorbed by Shields . | . . Core Remaining (%) 100 | 100 . Volleys Fired 59 | 24 35 Largest 2 | 2 2 Hottest 100 | 70 100 Shots Fired 116 | 48 68 Gun 115 | 48 67 Cannon . | . . Launcher . | . . Special 1 | . 1 Kinetic 42 | 24 18 Thermal 74 | 24 50 Explosive . | . . Electromagnetic . | . . Robot Hit Streak 10 | 10 5 Robot Miss Streak 6 | 2 6 Penetration Max . | . . Secondary Targets . | . . Shots Hit Robots 51 | 19 32 Core Hits 24 | 9 15 Critical Kills . | . . Critical Parts Destroyed . | . . Critical Strikes 4 | 3 1 Burn 4 | 3 1 Melee Attacks . | . . Impact . | . . Slashing . | . . Piercing . | . . Sneak Attacks . | . . Combat Hostiles . | . . Follow-up Attacks . | . . Damage Inflicted 657 | 250 407 Guns 624 | 250 374 Cannons . | . . Explosions . | . . Melee . | . . Ramming 9 | . 9 Kinetic 217 | 98 119 Thermal 431 | 152 279 Explosive . | . . Electromagnetic . | . . Impact . | . . Slashing . | . . Piercing . | . . Highest Corruption 6 | . 6 Average Corruption 5 | . 5 Corruption Purged . | . . Corruption Blocked . | . . Effects 11 | . 11 Message Errors 1 | . 1 Matter Fused 3 | . 3 Heat Flow Errors 2 | . 2 Energy Discharges 2 | . 2 Data Loss (major) 1 | . 1 Misfires 1 | . 1 Weapon Failures 1 | . 1 Overload Shots . | . . Overflow Damage . | . . Projectiles . | . . Explosions . | . . Melee . | . . Knockbacks . | . . Impact . | . . Kinetic . | . . Secondary . | . . Self-Inflicted Damage 1 | . 1 Shots . | . . Rammed 3 | . 3 Targets Rammed 7 | . 7 Kicked 4 | . 4 Crushed . | . . Highest Temperature 598 | 54 598 Average Temperature 139 | 16 182 Received Heat Transfer 276 | . 276 Effects 24 | . 24 Shutdowns 3 | . 3 Energy Bleed 3 | . 3 Interference 2 | . 2 Matter Decay 5 | . 5 Short Circuit 3 | . 3 Damage (minor) 1 | . 1 Damage (major) 3 | . 3 Damage (core) 4 | . 4 Siege Activations . | . . Martial Activations . | . . Shielding Activations . | . . Robots Disrupted . | . . Combat Hostiles . | . . Robots Corrupted . | . . Combat Hostiles . | . . Parts Fried . | . . Impact Corruptions . | . . Robots Melted . | . . Combat Hostiles . | . . Parts Melted 2 | . 2 Heat Transferred 1471 | 666 805 Parts Sabotaged . | . . Parts Stolen . | . . Parts Stripped . | . . Power Chain Reactions . | . . Alert | -11 -10 ------- Run | Yrd Mat Maximum Alert Level . | . . Low Security (%) 100 | 100 100 Level 1 . | . . Level 2 . | . . Level 3 . | . . Level 4 . | . . Level 5 . | . . High Security . | . . Max Security . | . . Peak Influence 110 | 10 110 Initial . | . . Average 18 | 1 25 Influence Increases 269 | 40 229 Destroy 0b10 Robot/C 140 | . 140 Destroy 0b10 Robot/NC 50 | 40 10 Destroy Leader 44 | . 44 Successful Hack 5 | . 5 Lose Combat Pursuer 30 | . 30 Influence Decreases 269 | 40 229 Time Decay 237 | 40 197 Lost Part 32 | . 32 Squads Dispatched 1 | . 1 Investigation 1 | . 1 Extermination . | . . Reinforcement . | . . Assault . | . . Garrison . | . . Intercept . | . . Searches Triggered . | . . Construction Impeded . | . . Haulers Reinforced . | . . Active Scanning Responses . | . . Cargo Convoy Interrupts . | . . Stealth | -11 -10 --------- Run | Yrd Mat Distress Signals . | . . Communications Jammed . | . . Distress Signals . | . . Times Spotted 16 | . 16 Peak Tracking Total 4 | . 4 Tactical Retreats 1 | . 1 Traps | -11 -10 ------- Run | Yrd Mat Traps Triggered 5 | . 5 Indirectly . | . . Trap Hack Attempts . | . . Triggered . | . . Disarmed . | . . Reprogrammed . | . . Reused . | . . Traps Extracted . | . . Installed . | . . Triggered . | . . Machines | -11 -10 ---------- Run | Yrd Mat Machines Disabled . | . . Max in Single Turn . | . . Machines Repaired . | . . Machines Dismantled . | . . Machines Sabotaged . | . . Overloaded Fab Kills . | . . Hacking | -11 -10 --------- Run | Yrd Mat Machines Accessed 3 | . 3 Terminals 3 | . 3 Fabricators . | . . Repair Stations . | . . Recycling Units . | . . Scanalyzers . | . . Garrison Access . | . . Total Hacks 9 | . 9 Successful 4 | . 4 Failed 5 | . 5 Catastrophic 1 | . 1 Database Lockouts . | . . Manual 6 | . 6 Terminals 9 | . 9 Fabricators . | . . Repair Stations . | . . Recycling Units . | . . Scanalyzers . | . . Garrison Access . | . . Terminal Hacks 2 | . 2 Robot Analysis 1 | . 1 Terminal Index 1 | . 1 Fabricator Hacks . | . . Repair Station Hacks . | . . Recycling Unit Hacks . | . . Scanalyzer . | . . Garrison Access Hacks . | . . Unauthorized Hacks 2 | . 2 Terminals 2 | . 2 Botnet 2 | . 2 Fabricators . | . . Repair Stations . | . . Recycling Units . | . . Scanalyzers . | . . Garrison Access . | . . Data Cores Recovered . | . . Used . | . . Hacking Detections 3 | . 3 Full Trace Events 1 | . 1 Feedback Events . | . . Feedback Blocked . | . . Robot Schematics Acquired . | . . Robots Built . | . . Authchips . | . . Time . | . . Total Robot Build Rating . | . . Part Schematics Acquired . | . . Parts Built . | . . Authchips . | . . Time . | . . Total Part Build Rating . | . . Parts Repaired . | . . Time . | . . Parts Recycled . | . . Recycled Matter . | . . Retrieved Matter . | . . Retrieved Components . | . . Parts Scanalyzed . | . . Part Schematics Acquired . | . . Parts Damaged . | . . Bothacking | -11 -10 ------------ Run | Yrd Mat Used RIF Installer . | . . Robots Hacked . | . . Non-combat . | . . Combat . | . . Robot Hacks Applied . | . . Relay Couplers Released . | . . Fabnet Peak Effective % . | . . Robots Rewired . | . . Allies Hacked . | . . Hacks Repelled . | . . Allies | -11 -10 -------- Run | Yrd Mat Total Allies . | . . Largest Group . | . . Highest-Rated Group . | . . Highest-Rated Ally . | . . Total Orders . | . . Ally Attacks . | . . Total Damage . | . . Kills . | . . Allies Corrupted . | . . Allies Melted . | . . Intel | -11 -10 ------- Run | Yrd Mat Active Infowar (turns) 835 | 52 783 Seismic 835 | 52 783 Robot Analysis Total 1 | . 1 Derelict Logs Recovered . | . . Drone Launches . | . . Drone Recoveries . | . . Exploration | -11 -10 ------------- Run | Yrd Mat Turns Passed 1144 | 309 835 Spaces Moved 589 | 190 399 Core 54 | 38 16 Treads . | . . Legs 535 | 152 383 Wheels . | . . Hover . | . . Flight . | . . Fastest Speed 50 | 50 100 Average Speed 120 | 113 123 Slowest Speed 250 | 150 250 Overloaded Moves . | . . Propulsion Burnouts . | . . Robots Hopped . | . . Potential Cave-ins . | . . Cave-ins Triggered . | . . Exploration Rate (%) 27 | 6 48 Regions Visited 1 Branch Regions . Pre-discovered Areas . | . . Known Exits Taken . | . . Unknown Exits Taken 1 | 1 . Scrap Searched . | . . Spaces Dug . | . . Terrain Destroyed . | . . Melee . | . . Projectile . | . . AOE . | . . Terrain Rammed . | . . Walls Destroyed . | . . Machines Disabled . | . . Actions | -11 -10 --------- Run | Yrd Mat Total 897 | 235 662 Wait 216 | 4 212 Move 588 | 189 399 Hop . | . . Pick Up 16 | 10 6 Fast Attach . | . . Attach 9 | 7 2 Detach . | . . Swap 2 | 1 1 Drop . | . . Fire 59 | 24 35 Melee . | . . Ram 3 | . 3 Kick 4 | . 4 Crush . | . . Escape Stasis . | . . Rewire . | . . Trap . | . . Miscellaneous . | . . Route ------- -11/Scrapyard -10/Materials (discovered 2 exits: [*Mat] / [*Min]) History --------- Turn | Location | Event 3 | -11/Scrapyard | Discovered new exit (range 15) 310 | -11/Scrapyard | Entered Materials 310 | -10/Materials | Discovered new exit (range 8) 311 | -10/Materials | Build established: Mutant 925 | -10/Materials | Discovered new exit (range 3) 1089 | -10/Materials | Core integrity fell below 50% 1116 | -10/Materials | Core integrity fell below 20% 1145 | -10/Materials | Destroyed by S-10 Pest with Light Assault Rifle Last Messages --------------- 01103_ Aluminum Leg broken. 01103_ Overheating: Short circuit. 01104_ Slammed into G-34 Mercenary. 01108_ Acquired 38 matter. 01109_ Overheating: Matter decay (-48). 01109_ Slammed into G-34 Mercenary. 01109_ Seismic Detector broken. 01109_ Destabilizing: Short circuit. 01109_ Broken Aluminum Leg destroyed. 01112_ System corrupted: Matter fused (-9). 01119_ R-06 Scavenger collects Aluminum Leg. 01131_ Mining Laser destroyed. 01133_ R-06 Scavenger collects Visual Processing Unit. 01140_ Acquired 7 matter. 01140_ Broken Aluminum Leg destroyed. 01142_ Lgt. Nuclear Core destroyed. 01142_ Broken Seismic Detector destroyed. 01144_ System corrupted: Energy discharge (-33). 01145_ Broken Sml. Laser destroyed. Map ----- +----------------------------------------------------+ | ??????# """ #?# ## #??? | | ??????# """ #?# ## #??? | | ??????# """ #?# ## #??? | | ??????# """ ### ## #??? | | ??????# + +% % + #??? | | ??????#####/#########+##########+##### | | ????????# ####### # # # | | ?????#### # # # | | ?????# ! " + # """ # | | ?????# ##% ^^ # # """ # | | ?????# ## ##+#+##+# # """ # | | ?????# ### ## #? #!!! """ # | | ?????# #?# ## #? #!!! # | | ?????# #?# ## """ [#?? #!! # | | ?????# #?# ## """ #??############# | | ###### #?# ## """ #??????????????? | | # # #? #########??????????????? | | # # ## ??????????????????????? | | # # ## ?????????????????????? | | # # ## ! ?????????????????????? | | # + ## ###????????????????????? | | # # ########??????????????????????? | | # # #######???????????????????????? | | # + # ######################### | | # # # | | ###### # @ g #??? | | ?????# # sss r #??? | | ?????# # #################+####??? | | ?????# ## ############## #???? | | ?????# ## # ## #???? | | ?????# ## # ## #???? | | ?????# ## + ## !! #???? | | ?????# ## # """ """ ## !! #???? | | ?????# ## # """ """ ?# ! #???? | | ?????# ## # """ """??# #???? | | ?#####+## # ??# * #???? | | ?# # ##########???# #???? | | ?# # #????????????# "T" #???? | | ?# """ +[ #????????????# #???? | | ?# """ # #????????????#########???? | | ?# """ # < #????????????????????????? | | ?# # #????????????????????????? | | ?############????????????????????????? | | ?????????????????????????????????????? | | ?????????????????????????????????????? | | ?????????????????????????????????????? | | ?????????????????????????????????????? | | ?????????????????????????????????????? | | ?????????????????????????????????????? | | ?????????????????????????????????????? | +----------------------------------------------------+ Best States ------------- Heat Dissipation 25 Energy Generation 14 Energy Capacity 160 Matter Stores 300 Matter Capacity 300 Sight Range 16 Terrain Scan Density 10 Evasion (%) 55 Item Schematics ----------------- None Robot Schematics ------------------ None Fabricated ------------ Nothing Repaired ---------- Nothing Alien Tech Used ----------------- None Achievements -------------- None Challenges ------------ None Game ------ Seed SubdwellerMyomerAccelerator Manual? 0 Play Time 00:09:27 Cumulative 10.0 hours Start 2025.10.07 @ 12:46:42 End 2025.10.07 @ 12:55:06 Sessions 1 Manual Loads 0 Difficulty Rogue Special Mode None Game No. 33 Rogue 33 Adventurer 0 Explorer 0 Win Type - Total 0 Types 0/0/0/0/0/0/0/0/0/0 Lore% 14 Gallery% 17 Achievement% 17 Wizard Run 0 Options --------- Layout 1 ASCII 0 Keyboard 0 Movement Numpad Keybinds 0 Fullscreen 1 Font 24/Smallcaps Map View 50x35 Zoom Use 0% Tactical HUD 1 Map Filters NONE Filters NONE Steam 1 RUN: d6120bc1-51fb-4cf8-b4b7-3b417683b305